[Event "December 19 Early 2023"]
[Site "https://www.chess.com"]
[Date "2023.12.19"]
[Round "7"]
[White "Sadovsky, Artem"]
[Black "Golubenko, Valentina"]
[Result "1-0"]
[Board "161"]
[TimeControl "180+1"]
[WhiteFideId "4155840"]
[BlackFideId "4501993"]
[WhiteElo "2314"]
[BlackElo "2126"]
[WhiteTeam "FID"]
[BlackTeam "CRO"]
[WhiteClock "0:00:58"]
[BlackClock "0:00:01"]

1. Nf3 {[%clk 0:02:58]}  d5 {[%clk 0:02:56]} 2. e3 {[%clk 0:02:57]}  c6 {[%clk 0:02:56]} 3. c4 {[%clk 0:02:58]}  Nf6 {[%clk 0:02:54]} 4. b3 {[%clk 0:02:58]}  g6 {[%clk 0:02:55]} 5. Bb2 {[%clk 0:02:58]}  Bg7 {[%clk 0:02:55]} 6. Be2 {[%clk 0:02:59]}  O-O {[%clk 0:02:55]} 7. O-O {[%clk 0:03:00]}  Bf5 {[%clk 0:02:45]} 8. d3 {[%clk 0:02:59]}  Nbd7 {[%clk 0:02:41]} 9. Nbd2 {[%clk 0:03:00]}  a5 {[%clk 0:02:28]} 10. Nd4 {[%clk 0:03:00]}  e5 {[%clk 0:02:19]} 11. Nxf5 {[%clk 0:02:58]}  gxf5 {[%clk 0:02:20]} 12. Qc2 {[%clk 0:02:39]}  Qe7 {[%clk 0:02:08]} 13. cxd5 {[%clk 0:02:23]}  Nxd5 {[%clk 0:02:03]} 14. Nc4 {[%clk 0:02:20]}  Nb4 {[%clk 0:01:52]} 15. Qd2 {[%clk 0:02:12]}  b5 {[%clk 0:01:47]} 16. Nxa5 {[%clk 0:01:55]}  Rxa5 {[%clk 0:01:33]} 17. a3 {[%clk 0:01:55]}  Ra7 {[%clk 0:00:36]} 18. axb4 {[%clk 0:01:46]}  Rfa8 {[%clk 0:00:31]} 19. Rfc1 {[%clk 0:01:40]}  c5 {[%clk 0:00:29]} 20. Rxa7 {[%clk 0:01:36]}  Rxa7 {[%clk 0:00:28]} 21. bxc5 {[%clk 0:01:36]}  Nxc5 {[%clk 0:00:27]} 22. Qb4 {[%clk 0:01:36]}  Rc7 {[%clk 0:00:13]} 23. Qxb5 {[%clk 0:01:24]}  Bf8 {[%clk 0:00:07]} 24. Ba3 {[%clk 0:01:11]}  Qd7 {[%clk 0:00:05]} 25. Rxc5 {[%clk 0:01:04]}  Qxb5 {[%clk 0:00:03]} 26. Rxb5 {[%clk 0:01:05]}  Bxa3 {[%clk 0:00:03]} 27. Rxe5 {[%clk 0:00:59]}  Rc1+ {[%clk 0:00:02]} 28. Bf1 {[%clk 0:01:00]}  Kg7 {[%clk 0:00:02]} 29. Rxf5 {[%clk 0:01:00]}  Kg6 {[%clk 0:00:03]} 30. g4 {[%clk 0:00:59]}  Rb1 {[%clk 0:00:03]} 31. Rb5 {[%clk 0:00:58]}  Be7 {[%clk 0:00:01]} 32. Kg2 {[%clk 0:00:58]}  h5 {[%clk 0:00:01]} 33. h3 {[%clk 0:00:58]}  hxg4 {[%clk 0:00:01]} 34. hxg4 {[%clk 0:00:59]}  Bg5 {[%clk 0:00:01]} 35. f4 {[%clk 0:00:58]}  Bf6 {[%clk 0:00:01]} 36. g5 {[%clk 0:00:58]}  Kg7 {[%clk 0:00:01]} 37. gxf6+ {[%clk 0:00:58]}  Kxf6 {[%clk 0:00:02]} 38. Be2 {[%clk 0:00:58]}  Rb2 {[%clk 0:00:01]} 39. Kf3 {[%clk 0:00:58]} 1-0

[Event "December 19 Early 2023"]
[Site "https://www.chess.com"]
[Date "2023.12.19"]
[Round "7"]
[White "Novak, Ratko"]
[Black "Chemin, Justo Reinaldo"]
[Result "1-0"]
[Board "166"]
[TimeControl "180+1"]
[WhiteFideId "14511827"]
[BlackFideId "2101580"]
[WhiteElo "2036"]
[BlackElo "1940"]
[WhiteTeam "CRO"]
[BlackTeam "BRA"]
[WhiteClock "0:00:48"]
[BlackClock "0:00:00"]

1. d4 {[%clk 0:03:00]}  d5 {[%clk 0:02:58]} 2. c4 {[%clk 0:03:01]}  e6 {[%clk 0:02:59]} 3. cxd5 {[%clk 0:03:01]}  exd5 {[%clk 0:02:58]} 4. Nc3 {[%clk 0:03:02]}  Nf6 {[%clk 0:02:58]} 5. f3 {[%clk 0:03:02]}  Nbd7 {[%clk 0:02:58]} 6. e4 {[%clk 0:03:02]}  dxe4 {[%clk 0:02:51]} 7. fxe4 {[%clk 0:03:03]}  Bb4 {[%clk 0:02:47]} 8. Qd3 {[%clk 0:03:02]}  Qe7 {[%clk 0:02:45]} 9. e5 {[%clk 0:02:59]}  c5 {[%clk 0:02:32]} 10. Be2 {[%clk 0:02:50]}  cxd4 {[%clk 0:02:25]} 11. exf6 {[%clk 0:02:50]}  dxc3 {[%clk 0:02:13]} 12. bxc3 {[%clk 0:02:48]}  Qxf6 {[%clk 0:02:07]} 13. Qe4+ {[%clk 0:02:28]}  Be7 {[%clk 0:02:01]} 14. Bb2 {[%clk 0:02:20]}  O-O {[%clk 0:01:58]} 15. Nf3 {[%clk 0:02:18]}  Nc5 {[%clk 0:01:54]} 16. Qd4 {[%clk 0:02:16]}  Qxd4 {[%clk 0:01:47]} 17. cxd4 {[%clk 0:02:13]}  Na4 {[%clk 0:01:40]} 18. Bc1 {[%clk 0:02:13]}  Bf6 {[%clk 0:01:37]} 19. Kf2 {[%clk 0:02:12]}  Nc3 {[%clk 0:01:34]} 20. Bd3 {[%clk 0:02:08]}  Bg4 {[%clk 0:01:31]} 21. Be3 {[%clk 0:02:06]}  Rfe8 {[%clk 0:01:27]} 22. Rhc1 {[%clk 0:02:04]}  Nd5 {[%clk 0:01:26]} 23. Bg5 {[%clk 0:02:00]}  Bxf3 {[%clk 0:01:17]} 24. Bxf6 {[%clk 0:02:00]}  Bxg2 {[%clk 0:01:04]} 25. Be5 {[%clk 0:01:47]}  Bh3 {[%clk 0:00:56]} 26. Be4 {[%clk 0:01:46]}  Be6 {[%clk 0:00:55]} 27. Rg1 {[%clk 0:01:45]}  g6 {[%clk 0:00:53]} 28. h4 {[%clk 0:01:39]}  f5 {[%clk 0:00:41]} 29. Bf3 {[%clk 0:01:33]}  Kf7 {[%clk 0:00:41]} 30. Rab1 {[%clk 0:01:29]}  b6 {[%clk 0:00:39]} 31. h5 {[%clk 0:01:27]}  Rac8 {[%clk 0:00:34]} 32. hxg6+ {[%clk 0:01:26]}  hxg6 {[%clk 0:00:34]} 33. Rh1 {[%clk 0:01:25]}  Rc2+ {[%clk 0:00:23]} 34. Kg3 {[%clk 0:01:25]}  Nf6 {[%clk 0:00:18]} 35. Rbc1 {[%clk 0:01:20]}  Rxc1 {[%clk 0:00:06]} 36. Rxc1 {[%clk 0:01:20]}  Re7 {[%clk 0:00:07]} 37. Rc6 {[%clk 0:01:14]}  Nd5 {[%clk 0:00:04]} 38. a3 {[%clk 0:00:52]}  g5 {[%clk 0:00:04]} 39. Bh5+ {[%clk 0:00:50]}  Kf8 {[%clk 0:00:01]} 40. Bd6 {[%clk 0:00:50]}  f4+ {[%clk 0:00:00]} 41. Kf3 {[%clk 0:00:48]} 1-0

[Event "December 19 Early 2023"]
[Site "https://www.chess.com"]
[Date "2023.12.19"]
[Round "7"]
[White "Essing, Arnold"]
[Black "Balla, Tamas-Kristof"]
[Result "0-1"]
[Board "167"]
[TimeControl "180+1"]
[WhiteFideId "4619862"]
[BlackFideId "1208497"]
[WhiteElo "2257"]
[BlackElo "2306"]
[WhiteTeam "GER"]
[BlackTeam "ROU"]
[WhiteClock "0:00:15"]
[BlackClock "0:00:30"]

1. d4 {[%clk 0:03:00]}  d5 {[%clk 0:02:58]} 2. Nf3 {[%clk 0:03:01]}  Nf6 {[%clk 0:02:58]} 3. c4 {[%clk 0:03:01]}  e6 {[%clk 0:02:58]} 4. Nc3 {[%clk 0:03:01]}  c5 {[%clk 0:02:59]} 5. e3 {[%clk 0:03:00]}  Nc6 {[%clk 0:02:59]} 6. a3 {[%clk 0:02:59]}  a6 {[%clk 0:02:58]} 7. dxc5 {[%clk 0:02:58]}  Bxc5 {[%clk 0:02:58]} 8. b4 {[%clk 0:02:58]}  Ba7 {[%clk 0:02:58]} 9. Bb2 {[%clk 0:02:59]}  O-O {[%clk 0:02:51]} 10. Be2 {[%clk 0:02:59]}  dxc4 {[%clk 0:02:51]} 11. Bxc4 {[%clk 0:02:56]}  b5 {[%clk 0:02:52]} 12. Be2 {[%clk 0:02:52]}  Bb7 {[%clk 0:02:52]} 13. O-O {[%clk 0:02:52]}  Rc8 {[%clk 0:02:50]} 14. Qb3 {[%clk 0:02:44]}  Qc7 {[%clk 0:02:45]} 15. Rac1 {[%clk 0:02:41]}  Bb8 {[%clk 0:02:45]} 16. g3 {[%clk 0:02:33]}  Ne5 {[%clk 0:02:13]} 17. Nd4 {[%clk 0:02:22]}  Nc4 {[%clk 0:02:12]} 18. a4 {[%clk 0:02:06]}  Nd2 {[%clk 0:02:08]} 19. Qa2 {[%clk 0:01:57]}  Nxf1 {[%clk 0:02:08]} 20. Bxf1 {[%clk 0:01:56]}  bxa4 {[%clk 0:02:07]} 21. Nxa4 {[%clk 0:01:34]}  Qe5 {[%clk 0:01:48]} 22. Nc5 {[%clk 0:01:32]}  Bd5 {[%clk 0:01:44]} 23. Qxa6 {[%clk 0:01:17]}  Rxc5 {[%clk 0:01:27]} 24. bxc5 {[%clk 0:01:03]}  Qe4 {[%clk 0:01:27]} 25. f3 {[%clk 0:00:59]}  Qxe3+ {[%clk 0:01:27]} 26. Kg2 {[%clk 0:00:57]}  Ng4 {[%clk 0:01:01]} 27. Qe2 {[%clk 0:00:55]}  Qh6 {[%clk 0:01:01]} 28. h4 {[%clk 0:00:39]}  Qg6 {[%clk 0:00:50]} 29. c6 {[%clk 0:00:31]}  Ne3+ {[%clk 0:00:30]} 30. Qxe3 {[%clk 0:00:26]}  Qxg3+ {[%clk 0:00:30]} 31. Kh1 {[%clk 0:00:15]}  Qh2# {[%clk 0:00:30]} 0-1

[Event "December 19 Early 2023"]
[Site "https://www.chess.com"]
[Date "2023.12.19"]
[Round "7"]
[White "Spichkin, Alexander"]
[Black "Arshiya Das"]
[Result "1-0"]
[Board "168"]
[TimeControl "180+1"]
[WhiteFideId "4144074"]
[BlackFideId "25652150"]
[WhiteElo "1955"]
[BlackElo "1481"]
[WhiteTeam "RUS"]
[BlackTeam "IND"]
[WhiteClock "0:01:39"]
[BlackClock "0:01:05"]

1. f4 {[%clk 0:02:59]}  g6 {[%clk 0:02:58]} 2. Nf3 {[%clk 0:02:59]}  Bg7 {[%clk 0:02:58]} 3. d3 {[%clk 0:02:56]}  b6 {[%clk 0:02:55]} 4. e4 {[%clk 0:02:53]}  Bb7 {[%clk 0:02:55]} 5. Be2 {[%clk 0:02:53]}  e6 {[%clk 0:02:55]} 6. O-O {[%clk 0:02:52]}  d6 {[%clk 0:02:55]} 7. Nc3 {[%clk 0:02:52]}  Ne7 {[%clk 0:02:55]} 8. Qe1 {[%clk 0:02:52]}  Nd7 {[%clk 0:02:55]} 9. Qh4 {[%clk 0:02:51]}  h6 {[%clk 0:02:55]} 10. Qg3 {[%clk 0:02:50]}  a6 {[%clk 0:02:53]} 11. Be3 {[%clk 0:02:45]}  O-O {[%clk 0:02:52]} 12. Rae1 {[%clk 0:02:46]}  Kh7 {[%clk 0:02:51]} 13. Qh3 {[%clk 0:02:45]}  Kg8 {[%clk 0:02:45]} 14. f5 {[%clk 0:02:43]}  exf5 {[%clk 0:02:45]} 15. Bxh6 {[%clk 0:02:42]}  fxe4 {[%clk 0:02:40]} 16. Ng5 {[%clk 0:02:34]}  Nf6 {[%clk 0:02:29]} 17. dxe4 {[%clk 0:02:15]}  Qc8 {[%clk 0:02:21]} 18. Qh4 {[%clk 0:02:04]}  b5 {[%clk 0:02:01]} 19. Bxg7 {[%clk 0:02:02]}  Kxg7 {[%clk 0:02:00]} 20. Rxf6 {[%clk 0:02:02]}  Kxf6 {[%clk 0:01:59]} 21. Rf1+ {[%clk 0:02:03]}  Nf5 {[%clk 0:01:47]} 22. exf5 {[%clk 0:01:58]}  Rh8 {[%clk 0:01:39]} 23. fxg6+ {[%clk 0:01:54]}  Kxg6 {[%clk 0:01:33]} 24. Bd3+ {[%clk 0:01:53]}  f5 {[%clk 0:01:28]} 25. Qg3 {[%clk 0:01:52]}  Rf8 {[%clk 0:01:20]} 26. Ne6+ {[%clk 0:01:48]}  Kf6 {[%clk 0:01:17]} 27. Nxf8 {[%clk 0:01:47]}  Kf7 {[%clk 0:01:05]} 28. Rxf5+ {[%clk 0:01:45]}  Ke8 {[%clk 0:01:04]} 29. Qg6+ {[%clk 0:01:44]}  Ke7 {[%clk 0:01:04]} 30. Rf7+ {[%clk 0:01:41]}  Kd8 {[%clk 0:01:04]} 31. Ne6+ {[%clk 0:01:40]}  Qxe6 {[%clk 0:01:04]} 32. Qxe6 {[%clk 0:01:39]}  Bc6 {[%clk 0:01:05]} 33. Qe7+ {[%clk 0:01:39]}  Kc8 {[%clk 0:01:05]} 34. Qxc7# {[%clk 0:01:39]} 1-0

[Event "December 19 Early 2023"]
[Site "https://www.chess.com"]
[Date "2023.12.19"]
[Round "7"]
[White "Navyblue1"]
[Black "Topalov, Aleksandar"]
[Result "0-1"]
[Board "175"]
[TimeControl "180+1"]
[BlackFideId "925659"]
[WhiteElo "2084"]
[BlackElo "2151"]
[BlackTeam "SRB"]
[WhiteClock "0:00:00"]
[BlackClock "0:00:45"]

1. d4 {[%clk 0:03:00]}  Nf6 {[%clk 0:02:59]} 2. c4 {[%clk 0:02:57]}  c5 {[%clk 0:02:59]} 3. d5 {[%clk 0:02:56]}  d6 {[%clk 0:02:59]} 4. Nc3 {[%clk 0:02:55]}  g6 {[%clk 0:03:00]} 5. e4 {[%clk 0:02:55]}  Bg7 {[%clk 0:03:00]} 6. f4 {[%clk 0:02:50]}  O-O {[%clk 0:03:00]} 7. Nf3 {[%clk 0:02:49]}  e6 {[%clk 0:03:00]} 8. Be2 {[%clk 0:02:02]}  exd5 {[%clk 0:02:53]} 9. exd5 {[%clk 0:01:44]}  Nh5 {[%clk 0:02:51]} 10. O-O {[%clk 0:01:38]}  Bxc3 {[%clk 0:02:50]} 11. bxc3 {[%clk 0:01:35]}  f5 {[%clk 0:02:51]} 12. Ng5 {[%clk 0:01:25]}  Ng7 {[%clk 0:02:50]} 13. Bd3 {[%clk 0:01:11]}  Re8 {[%clk 0:02:48]} 14. Re1 {[%clk 0:01:00]}  Nd7 {[%clk 0:02:48]} 15. Bd2 {[%clk 0:00:54]}  Nf6 {[%clk 0:02:46]} 16. Qb3 {[%clk 0:00:42]}  b6 {[%clk 0:02:45]} 17. Rxe8+ {[%clk 0:00:40]}  Qxe8 {[%clk 0:02:45]} 18. Re1 {[%clk 0:00:40]}  Qf8 {[%clk 0:02:42]} 19. Qd1 {[%clk 0:00:20]}  Bd7 {[%clk 0:02:41]} 20. Re2 {[%clk 0:00:19]}  Re8 {[%clk 0:02:41]} 21. Qe1 {[%clk 0:00:19]}  h6 {[%clk 0:02:37]} 22. Nf3 {[%clk 0:00:18]}  Rxe2 {[%clk 0:02:28]} 23. Qxe2 {[%clk 0:00:18]}  Kf7 {[%clk 0:02:22]} 24. Nh4 {[%clk 0:00:17]}  Qc8 {[%clk 0:02:11]} 25. Qf2 {[%clk 0:00:16]}  Ngh5 {[%clk 0:01:47]} 26. Qe2 {[%clk 0:00:12]}  Qa6 {[%clk 0:01:41]} 27. Bc1 {[%clk 0:00:11]}  Qa5 {[%clk 0:01:38]} 28. Qc2 {[%clk 0:00:11]}  Ba4 {[%clk 0:01:30]} 29. Qb2 {[%clk 0:00:08]}  Bd7 {[%clk 0:01:28]} 30. Nf3 {[%clk 0:00:07]}  Qa4 {[%clk 0:01:23]} 31. Qc2 {[%clk 0:00:07]}  Qxc2 {[%clk 0:01:19]} 32. Bxc2 {[%clk 0:00:07]}  b5 {[%clk 0:01:18]} 33. cxb5 {[%clk 0:00:07]}  Bxb5 {[%clk 0:01:18]} 34. g3 {[%clk 0:00:06]}  Nxd5 {[%clk 0:01:14]} 35. Bd2 {[%clk 0:00:06]}  Bc4 {[%clk 0:01:11]} 36. a3 {[%clk 0:00:05]}  Nhf6 {[%clk 0:01:07]} 37. Ne1 {[%clk 0:00:04]}  Ne4 {[%clk 0:01:04]} 38. Bxe4 {[%clk 0:00:04]}  fxe4 {[%clk 0:01:05]} 39. Kf2 {[%clk 0:00:05]}  h5 {[%clk 0:01:01]} 40. Nc2 {[%clk 0:00:06]}  Nf6 {[%clk 0:00:54]} 41. Ne3 {[%clk 0:00:05]}  Be6 {[%clk 0:00:53]} 42. c4 {[%clk 0:00:04]}  Nd7 {[%clk 0:00:51]} 43. Bc3 {[%clk 0:00:04]}  Nb6 {[%clk 0:00:50]} 44. h4 {[%clk 0:00:01]}  Nxc4 {[%clk 0:00:49]} 45. Nxc4 {[%clk 0:00:01]}  Bxc4 {[%clk 0:00:49]} 46. Ke3 {[%clk 0:00:02]}  d5 {[%clk 0:00:49]} 47. Be5 {[%clk 0:00:03]}  Ke6 {[%clk 0:00:46]} 48. Bb8 {[%clk 0:00:03]}  Bd3 {[%clk 0:00:44]} 49. Bxa7 {[%clk 0:00:03]}  d4+ {[%clk 0:00:45]} 50. Kd2 {[%clk 0:00:03]}  Kd5 {[%clk 0:00:45]} 51. a4 {[%clk 0:00:03]}  c4 {[%clk 0:00:45]} 52. a5 {[%clk 0:00:03]}  c3+ {[%clk 0:00:45]} 53. Kc1 {[%clk 0:00:03]}  Ba6 {[%clk 0:00:45]} 54. Bb6 {[%clk 0:00:03]}  Kc4 {[%clk 0:00:46]} 55. Bc7 {[%clk 0:00:02]}  d3 {[%clk 0:00:45]} 56. Be5 {[%clk 0:00:00]}  Bb5 {[%clk 0:00:45]} 0-1

[Event "December 19 Early 2023"]
[Site "https://www.chess.com"]
[Date "2023.12.19"]
[Round "7"]
[White "Zepeda Berlanga, Jan Enrique"]
[Black "Fonseca Manrique, Enrique"]
[Result "0-1"]
[Board "177"]
[TimeControl "180+1"]
[WhiteFideId "5132355"]
[BlackFideId "5114330"]
[WhiteElo "1680"]
[BlackElo "2133"]
[WhiteTeam "MEX"]
[BlackTeam "MEX"]
[WhiteClock "0:00:00"]
[BlackClock "0:00:34"]

1. c4 {[%clk 0:03:00]}  e5 {[%clk 0:02:58]} 2. Nc3 {[%clk 0:02:58]}  Nf6 {[%clk 0:02:58]} 3. Nf3 {[%clk 0:02:58]}  Nc6 {[%clk 0:02:59]} 4. g3 {[%clk 0:02:54]}  Bb4 {[%clk 0:02:59]} 5. Bg2 {[%clk 0:02:44]}  O-O {[%clk 0:02:58]} 6. O-O {[%clk 0:02:41]}  d6 {[%clk 0:02:57]} 7. d3 {[%clk 0:02:35]}  h6 {[%clk 0:02:54]} 8. a3 {[%clk 0:02:32]}  Bxc3 {[%clk 0:02:51]} 9. bxc3 {[%clk 0:02:31]}  Re8 {[%clk 0:02:49]} 10. Qc2 {[%clk 0:02:22]}  Be6 {[%clk 0:02:47]} 11. Rd1 {[%clk 0:02:17]}  Qc8 {[%clk 0:02:44]} 12. Rb1 {[%clk 0:02:00]}  Rb8 {[%clk 0:02:40]} 13. Qa4 {[%clk 0:01:54]}  a6 {[%clk 0:02:38]} 14. d4 {[%clk 0:01:51]}  Bf5 {[%clk 0:02:31]} 15. Rb2 {[%clk 0:01:33]}  Bd7 {[%clk 0:02:29]} 16. Qc2 {[%clk 0:01:31]}  e4 {[%clk 0:01:59]} 17. Ne1 {[%clk 0:01:28]}  Na5 {[%clk 0:01:55]} 18. f3 {[%clk 0:00:47]}  exf3 {[%clk 0:01:48]} 19. Bxf3 {[%clk 0:00:44]}  Nxc4 {[%clk 0:01:42]} 20. Rb4 {[%clk 0:00:42]}  d5 {[%clk 0:01:26]} 21. Bf4 {[%clk 0:00:35]}  Bf5 {[%clk 0:01:22]} 22. Nd3 {[%clk 0:00:16]}  Nxa3 {[%clk 0:00:57]} 23. Qb3 {[%clk 0:00:15]}  Nb5 {[%clk 0:00:48]} 24. Bxd5 {[%clk 0:00:14]}  Nxd5 {[%clk 0:00:47]} 25. Qxd5 {[%clk 0:00:14]}  Be4 {[%clk 0:00:46]} 26. Qc5 {[%clk 0:00:12]}  Qh3 {[%clk 0:00:45]} 27. Ne1 {[%clk 0:00:11]}  Rbd8 {[%clk 0:00:38]} 28. c4 {[%clk 0:00:00]}  b6 {[%clk 0:00:34]} 0-1

[Event "December 19 Early 2023"]
[Site "https://www.chess.com"]
[Date "2023.12.19"]
[Round "7"]
[White "Hoffmann, Asa"]
[Black "Santos, Isaque Goncalves"]
[Result "1-0"]
[Board "178"]
[TimeControl "180+1"]
[WhiteFideId "2001470"]
[BlackFideId "2103885"]
[WhiteElo "2117"]
[BlackElo "1901"]
[WhiteTeam "USA"]
[BlackTeam "BRA"]
[WhiteClock "0:00:46"]
[BlackClock "0:00:03"]

1. d4 {[%clk 0:02:50]}  d5 {[%clk 0:02:59]} 2. Bg5 {[%clk 0:02:40]}  h6 {[%clk 0:02:54]} 3. Bh4 {[%clk 0:02:40]}  g5 {[%clk 0:02:54]} 4. Bg3 {[%clk 0:02:39]}  Bg7 {[%clk 0:02:54]} 5. e3 {[%clk 0:02:38]}  Nd7 {[%clk 0:02:50]} 6. c4 {[%clk 0:02:38]}  c6 {[%clk 0:02:39]} 7. Nc3 {[%clk 0:02:32]}  Ngf6 {[%clk 0:02:38]} 8. Nf3 {[%clk 0:02:29]}  Qa5 {[%clk 0:02:36]} 9. Qd2 {[%clk 0:02:27]}  g4 {[%clk 0:02:24]} 10. Ne5 {[%clk 0:02:26]}  Nh5 {[%clk 0:02:14]} 11. Nxg4 {[%clk 0:02:19]}  Nxg3 {[%clk 0:02:06]} 12. hxg3 {[%clk 0:02:19]}  Nb6 {[%clk 0:01:59]} 13. Ne5 {[%clk 0:02:14]}  Bxe5 {[%clk 0:01:46]} 14. dxe5 {[%clk 0:02:13]}  dxc4 {[%clk 0:01:46]} 15. Qd4 {[%clk 0:02:02]}  c5 {[%clk 0:01:30]} 16. Qf4 {[%clk 0:01:58]}  Be6 {[%clk 0:01:23]} 17. O-O-O {[%clk 0:01:54]}  Na4 {[%clk 0:01:06]} 18. Rxh6 {[%clk 0:01:36]}  Rf8 {[%clk 0:00:48]} 19. Rxe6 {[%clk 0:01:33]}  fxe6 {[%clk 0:00:33]} 20. Qxc4 {[%clk 0:01:32]}  Nxc3 {[%clk 0:00:29]} 21. bxc3 {[%clk 0:01:18]}  Rxf2 {[%clk 0:00:18]} 22. Be2 {[%clk 0:01:16]}  Qa3+ {[%clk 0:00:17]} 23. Kb1 {[%clk 0:01:14]}  Rc8 {[%clk 0:00:16]} 24. Qxe6 {[%clk 0:00:48]}  Rd8 {[%clk 0:00:04]} 25. Qg8+ {[%clk 0:00:46]}  Rf8 {[%clk 0:00:03]} 26. Bh5# {[%clk 0:00:46]} 1-0

[Event "December 19 Early 2023"]
[Site "https://www.chess.com"]
[Date "2023.12.19"]
[Round "7"]
[White "Shapiro, Daniel"]
[Black "Hrebenshchykova, Yelyzaveta"]
[Result "0-1"]
[Board "179"]
[TimeControl "180+1"]
[WhiteFideId "2001780"]
[BlackFideId "14159899"]
[WhiteElo "2302"]
[BlackElo "2045"]
[WhiteTeam "USA"]
[BlackTeam "UKR"]
[WhiteClock "0:01:38"]
[BlackClock "0:01:15"]

1. d4 {[%clk 0:02:45]}  Nf6 {[%clk 0:02:59]} 2. c4 {[%clk 0:02:44]}  g6 {[%clk 0:02:59]} 3. Nc3 {[%clk 0:02:43]}  Bg7 {[%clk 0:03:00]} 4. e4 {[%clk 0:02:43]}  d6 {[%clk 0:03:00]} 5. Be2 {[%clk 0:02:43]}  O-O {[%clk 0:03:00]} 6. Nf3 {[%clk 0:02:42]}  e5 {[%clk 0:03:00]} 7. O-O {[%clk 0:02:42]}  Nc6 {[%clk 0:03:00]} 8. d5 {[%clk 0:02:42]}  Ne7 {[%clk 0:03:00]} 9. a4 {[%clk 0:02:42]}  a5 {[%clk 0:02:56]} 10. Ne1 {[%clk 0:02:38]}  Nd7 {[%clk 0:02:33]} 11. Nd3 {[%clk 0:02:36]}  b6 {[%clk 0:02:33]} 12. b3 {[%clk 0:02:35]}  f5 {[%clk 0:02:32]} 13. f3 {[%clk 0:02:35]}  f4 {[%clk 0:02:28]} 14. Ba3 {[%clk 0:02:34]}  g5 {[%clk 0:02:25]} 15. b4 {[%clk 0:02:34]}  axb4 {[%clk 0:02:24]} 16. Bxb4 {[%clk 0:02:34]}  h5 {[%clk 0:02:12]} 17. a5 {[%clk 0:02:34]}  bxa5 {[%clk 0:02:03]} 18. Bxa5 {[%clk 0:02:34]}  Ba6 {[%clk 0:01:35]} 19. Nb4 {[%clk 0:02:25]}  Nc5 {[%clk 0:01:35]} 20. Nxa6 {[%clk 0:02:16]}  Nxa6 {[%clk 0:01:35]} 21. Nb5 {[%clk 0:02:11]}  Qd7 {[%clk 0:01:34]} 22. c5 {[%clk 0:01:52]}  Nxc5 {[%clk 0:01:32]} 23. Bxc7 {[%clk 0:01:46]}  Rxa1 {[%clk 0:01:29]} 24. Qxa1 {[%clk 0:01:46]}  Nc8 {[%clk 0:01:18]} 25. Qa6 {[%clk 0:01:38]}  Nxa6 {[%clk 0:01:15]} 0-1